fUST/lending_fUST_20251004
["ID","MTS","AMOUNT","RATE_DAILY","PERIOD"]
[388941415,1759525876412,-979.25,0.00030136,16]
[388941416,1759525876421,-979.25,0.00030136,16]
[388941417,1759525876430,-979.25,0.00030136,16]
[388941418,1759525876439,-979.25,0.00030136,16]
[388941419,1759525876449,-3719.32,0.00030136,16]
[388941420,1759525876458,-979.44285595,0.00030136,16]
[388941421,1759525876468,-3719.32,0.00030136,16]
[388941422,1759525876477,-3719.32,0.00030136,16]
[388941423,1759525876487,-500.0,0.00030136,7]
[388941424,1759525876495,-3719.32,0.00030136,16]
[388941425,1759525876504,-500.0,0.00030136,7]
[388941426,1759525876514,-3719.32,0.00030136,16]
[388941427,1759525876523,-500.0,0.00030136,7]
[388941428,1759525876532,-3719.32,0.00030136,16]
[388941429,1759525876540,-500.0,0.00030136,7]
[388941430,1759525876549,-3719.32,0.00030136,16]
[388941431,1759525876559,-500.0,0.00030136,7]
[388941432,1759525876567,-3719.32,0.00030136,16]
[388941433,1759525876577,-500.0,0.00030136,7]
[388941434,1759525876586,-3719.32,0.00030136,16]
[388941435,1759525876595,-500.0,0.00030136,7]
[388941436,1759525876604,-3719.32,0.00030136,16]
[388941437,1759525876614,-422.33235265,0.00030136,7]
[388941438,1759525876623,-3719.32,0.00030136,16]
[388941439,1759525876632,-3719.32,0.00030136,16]
[388941440,1759525876642,-3719.32,0.00030136,16]
[388941441,1759525876651,-3719.32,0.00030136,16]
[388941442,1759525876661,-485.90230247,0.00030136,16]
[388941443,1759525876670,-2382.67745348,0.00030136,16]
[388941444,1759525876706,-1336.64254652,0.00030136,16]
[388941445,1759525876715,-500.0,0.00030136,16]
[388941446,1759525876725,-3719.32,0.00030136,16]
[388941447,1759525876734,-500.0,0.00030136,16]
[388941448,1759525876743,-3719.32,0.00030136,16]
[388941449,1759525876753,-277.22451603,0.00030136,16]
[388941450,1759525876765,-222.77548397,0.00030136,16]
[388941451,1759525876775,-3719.32,0.00030136,16]
[388941452,1759525876784,-500.0,0.00030136,16]
[388941453,1759525876793,-2997.47027465,0.00030136,16]
[388941454,1759525876973,-721.84972535,0.00030136,16]
[388941455,1759525876983,-500.0,0.00030136,16]
[388941456,1759525876992,-1017.9695647,0.00030136,16]
[388941457,1759525877004,-1025.68920009,0.00030136,16]
[388941458,1759525877019,-724.155658,0.00030136,16]
[388941459,1759525877031,-484.785696,0.00030136,16]
[388941460,1759525877042,-466.71988121,0.00030136,16]
[388941461,1759525877051,-500.0,0.00030136,16]
[388941462,1759525877060,-500.0,0.00030136,16]
[388941463,1759525877069,-3719.32,0.00030136,16]
[388941464,1759525877080,-500.0,0.00030136,16]
[388941465,1759525877091,-500.0,0.00030136,16]
[388941466,1759525877100,-1590.66099152,0.00030136,16]
[388941467,1759525877130,-2128.65900848,0.00030136,16]
[388941468,1759525877140,-500.0,0.00030136,16]
[388941469,1759525877150,-3719.32,0.00030136,16]
[388941470,1759525877161,-500.0,0.00030136,16]
[388941471,1759525877170,-3719.52998108,0.00030136,16]
[388941472,1759525877179,-500.0,0.00030136,16]
[388941473,1759525877189,-206.68850099,0.00030136,16]
[388941474,1759525877199,-500.0,0.00030136,16]
[388941475,1759525877207,-500.0,0.00030136,16]
[388941476,1759525877217,-500.0,0.00030136,16]
[388941477,1759525877226,-500.0,0.00030136,16]
[388941478,1759525877235,-500.0,0.00030136,16]
[388941479,1759525877245,-500.0,0.00030136,16]
[388941480,1759525877254,-500.0,0.00030136,16]
[388941481,1759525877263,-500.0,0.00030136,16]
[388941482,1759525877272,-500.0,0.00030136,16]
[388941483,1759525877281,-500.0,0.00030136,16]
[388941484,1759525877290,-440.775544,0.00030136,16]
[388941485,1759525877299,-275.7103966,0.00030136,16]
[388941486,1759525877664,-980.47130794,0.00024651,2]
[388941558,1759526866543,10431.82764668,0.00018,2]
[388941570,1759527011653,5000.0,0.00018033,2]
[388941638,1759527033559,5000.0,0.00018033,2]
[388941641,1759527037919,-5000.0,0.00018312,2]
[388941642,1759527037929,-27863.8354278,0.00018539,2]
[388941643,1759527037939,-1000.0,0.00018821,2]
[388941644,1759527037948,-207.1806349,0.00018964,2]
[388941645,1759527037958,-271.46044076,0.00019247,2]
[388941650,1759527038196,-500.0,0.00019247,2]
[388941651,1759527038211,-500.0,0.00019247,2]
[388941652,1759527038222,-500.0,0.00019247,2]
[388941653,1759527038232,-500.0,0.00019247,2]
[388941654,1759527038242,-500.0,0.00019247,2]
[388941655,1759527038252,-179.4675456,0.00019247,2]
[388941656,1759527038262,-500.0,0.00019247,2]
[388941657,1759527038273,-182.71547195,0.00019247,2]
[388941658,1759527038283,-500.0,0.00019247,2]
[388941659,1759527038292,-500.0,0.00019247,2]
[388941660,1759527038302,-500.0,0.00019247,2]
[388941661,1759527038312,-500.0,0.00019247,2]
[388941662,1759527038322,-500.0,0.00019247,2]
[388941663,1759527038331,-500.0,0.00019247,2]
[388941664,1759527038340,-500.0,0.00019247,2]
[388941665,1759527038350,-500.0,0.00019247,2]
[388941666,1759527038359,-500.0,0.00019247,2]
[388941667,1759527038369,-500.0,0.00019247,2]
[388941668,1759527038379,-500.0,0.00019247,2]
[388941669,1759527038388,-500.0,0.00019247,2]
[388941670,1759527038398,-500.0,0.00019247,2]
[388941671,1759527038407,-500.0,0.00019247,2]
[388941672,1759527038416,-500.0,0.00019247,2]
[388941673,1759527038426,-500.0,0.00019247,2]
[388941674,1759527038436,-500.0,0.00019247,2]
[388941675,1759527038445,-500.0,0.00019247,2]
[388941676,1759527038455,-500.0,0.00019247,2]
[388941677,1759527038464,-500.0,0.00019247,2]
[388941678,1759527038474,-500.0,0.00019247,2]
[388941679,1759527038483,-500.0,0.00019247,2]
[388941680,1759527038493,-500.0,0.00019247,2]
[388941681,1759527038512,-500.0,0.00019247,2]
[388941682,1759527038524,-500.0,0.00019247,2]
[388941683,1759527038534,-500.0,0.00019247,2]
[388941684,1759527038544,-500.0,0.00019247,2]
[388941685,1759527038554,-500.0,0.00019247,2]
[388941686,1759527038563,-416.01356364,0.00019247,2]
[388941687,1759527038573,-500.0,0.00019247,2]
[388941688,1759527038583,-500.0,0.00019247,2]
[388941689,1759527038592,-500.0,0.00019247,2]
[388941690,1759527038602,-500.0,0.00019247,2]
[388941691,1759527038612,-500.0,0.00019247,2]
[388941692,1759527038621,-500.0,0.00019247,2]
[388941693,1759527038630,-500.0,0.00019247,2]
[388941694,1759527038640,-500.0,0.00019247,2]
[388941695,1759527038649,-500.0,0.00019247,2]
[388941696,1759527038658,-500.0,0.00019247,2]
[388941697,1759527038667,-500.0,0.00019247,2]
[388941698,1759527038677,-500.0,0.00019247,2]
[388941699,1759527038686,-500.0,0.00019247,2]
[388941700,1759527038695,-500.0,0.00019247,2]
[388941701,1759527038705,-500.0,0.00019247,2]
[388941702,1759527038714,-500.0,0.00019247,2]
[388941703,1759527038723,-500.0,0.00019247,2]
[388941704,1759527038733,-500.0,0.00019247,2]
[388941705,1759527038742,-500.0,0.00019247,2]
[388941706,1759527038752,-275.05565314,0.00019247,2]
[388941707,1759527038762,-500.0,0.00019247,2]
[388941708,1759527038772,-500.0,0.00019247,2]
[388941709,1759527038783,-500.0,0.00019247,2]
[388941710,1759527038793,-500.0,0.00019247,2]
[388941711,1759527038803,-500.0,0.00019247,2]
[388941712,1759527038813,-500.0,0.00019247,2]
[388941713,1759527038823,-500.0,0.00019247,2]
[388941714,1759527038833,-625.0,0.00019247,2]
[388941715,1759527038843,-500.0,0.00019247,2]
[388941716,1759527038852,-500.0,0.00019247,2]
[388941717,1759527038862,-500.0,0.00019247,2]
[388941718,1759527038872,-500.0,0.00019247,2]
[388941719,1759527038881,-500.0,0.00019247,2]
[388941720,1759527038891,-500.0,0.00019247,2]
[388941721,1759527038900,-500.0,0.00019247,2]
[388941722,1759527038910,-500.0,0.00019247,2]
[388941723,1759527038919,-19154.938701,0.00019248,2]
[388941724,1759527038928,-157.988766,0.00019468,2]
[388941725,1759527038938,-5042.3865383,0.00019571,2]
[388941726,1759527038947,-218.21954403,0.00020373,2]
[388941727,1759527038957,-405.87547483,0.00020444,2]
[388941728,1759527038966,-500.0,0.00020444,2]
[388941729,1759527038976,-227.96357048,0.00020444,2]
[388941730,1759527038986,-13499.42415211,0.00020446,2]
[388941731,1759527038996,-500.0,0.00020473,2]
[388941732,1759527039006,-500.0,0.000205,2]
[388941733,1759527039016,-300.0,0.00020862,2]
[388941734,1759527039026,-300.0,0.00020862,2]
[388941735,1759527039036,-300.0,0.00020862,2]
[388941736,1759527039045,-300.0,0.00020862,2]
[388941737,1759527039054,-300.0,0.00020862,2]
[388941738,1759527039064,-300.0,0.00020862,2]
[388941739,1759527039074,-300.0,0.00020862,2]
[388941740,1759527039083,-300.0,0.00020862,2]
[388941741,1759527039092,-300.0,0.00020862,2]
[388941742,1759527039102,-300.0,0.00020862,2]
[388941743,1759527039111,-300.0,0.00020862,2]
[388941744,1759527039121,-300.0,0.00020862,2]
[388941745,1759527039131,-300.0,0.00020862,2]
[388941746,1759527039141,-300.0,0.00020862,2]
[388941747,1759527039150,-300.0,0.00020862,2]
[388941748,1759527039159,-411.15458818,0.00021021,2]
[388941749,1759527039169,-6546.11767623,0.000215,2]
[388941750,1759527039178,-500.0,0.000216,2]
[388941751,1759527039187,-250.0,0.00021771,2]
[388941752,1759527039201,-500.0,0.00021967,2]
[388941753,1759527039211,-500.0,0.00021967,2]
[388941754,1759527039221,-500.0,0.00021967,2]
[388941755,1759527039231,-2358.2792056,0.00021973,2]
[388941756,1759527039241,-500.0,0.00022515,2]
[388941757,1759527039251,-786.18258929,0.00022515,2]
[388941758,1759527039262,-1041.66666667,0.00023,2]
[388941759,1759527039272,-1108.15,0.00023,2]
[388941760,1759527039282,-160.0,0.00023,2]
[388941761,1759527039291,-168.0,0.00023452,10]
[388941762,1759527039300,-1000.0,0.000235,2]
[388941763,1759527039310,-160.0,0.00023675,2]
[388941764,1759527039319,-234.04758945,0.00023675,2]
[388941765,1759527039329,-293.47406221,0.00023675,2]
[388941766,1759527039338,-100000.0,0.0002399,2]
[388941767,1759527039348,-1713.05130715,0.00024,2]
[388941768,1759527039357,-163.5250806,0.00024,2]
[388941769,1759527039366,-459.32258183,0.00024,2]
[388941770,1759527039377,-157.988766,0.00024034,2]
[388941771,1759527039386,-2279.7,0.00024657,2]
[388941772,1759527039396,-332671.634218,0.000249,2]
[388941773,1759527039405,-218.21954403,0.000249,2]
[388941774,1759527039416,-2822.8513138,0.00025,2]
[388941776,1759527039425,-900.0,0.00025469,3]
[388941778,1759527039435,-666.66666667,0.00025493,2]
[388941781,1759527039444,-666.66666667,0.00025493,2]
[388941782,1759527039454,-666.66666667,0.00025493,2]
[388941784,1759527039464,-1000.0,0.000255,2]
[388941786,1759527039474,-666.66666667,0.00025646,4]
[388941788,1759527039483,-666.66666667,0.00025646,4]
[388941790,1759527039493,-666.66666667,0.00025799,6]
[388941792,1759527039502,-666.66666667,0.00025799,6]
[388941793,1759527039513,-666.66666667,0.00025799,6]
[388941794,1759527039525,-666.66666667,0.00025799,6]
[388941795,1759527039535,-110890.544739,0.00025943,2]
[388941796,1759527039544,-666.66666667,0.00025953,8]
[388941798,1759527039555,-666.66666667,0.00025953,8]
[388941800,1759527039564,-666.66666667,0.00026106,10]
[388941802,1759527039574,-666.66666667,0.00026106,10]
[388941804,1759527039584,-666.66666667,0.00026106,10]
[388941806,1759527039596,-666.66666667,0.00026719,18]
[388941808,1759527039606,-2279.7,0.00026849,4]
[388941809,1759527039615,-666.66666667,0.00026873,20]
[388941810,1759527039625,-178.25,0.00027234,16]
[388941811,1759527039634,-1108.15,0.000273,2]
[388941812,1759527039644,-274.25687453,0.00028,14]
[388941813,1759527039654,-157.988766,0.000286,60]
[388941814,1759527039663,-2000.0,0.00028664,7]
[388941815,1759527039672,-319.5920289,0.00028904,30]
[388941816,1759527039682,-162.5876315,0.00028904,30]
[388941817,1759527039691,-297.3661479,0.00028904,30]
[388941818,1759527039700,-153.0,0.00028904,30]
[388941819,1759527039710,-634.2166144,0.00028904,30]
[388941820,1759527039719,-382.4561056,0.00028904,30]
[388941821,1759527039728,-314.7386013,0.00028904,30]
[388941822,1759527039738,-162.5876315,0.00028904,30]
[388941823,1759527039747,-153.0239982,0.00028904,30]
[388941824,1759527039756,-297.3661479,0.00028904,30]
[388941825,1759527039765,-162.5876315,0.00028904,30]
[388941826,1759527039775,-153.0,0.00028904,30]
[388941827,1759527039785,-587.3710559,0.00028904,30]
[388941828,1759527039794,-2279.7,0.00029041,6]
[388941829,1759527039804,-10184.0,0.0002907,60]
[388941830,1759527039815,-275.30767329,0.00029231,2]
[388941831,1759527039825,-4000.0,0.00029367,4]
[388941832,1759527039835,-177.01977004,0.000295,120]
[388941834,1759527039844,-980.0,0.00029635,2]
[388941835,1759527039854,-630.0,0.00029635,2]
[388941837,1759527039864,-2157.0,0.00029635,2]
[388941839,1759527039873,-525.512,0.00029635,2]
[388941841,1759527039883,-297.3661479,0.00029726,30]
[388941843,1759527039892,-162.5876315,0.00029726,30]
[388941844,1759527039901,-587.3710559,0.00029726,30]
[388941845,1759527039911,-153.0,0.00029726,30]
[388941846,1759527039920,-162.5876315,0.00029726,30]
[388941847,1759527039930,-297.3661479,0.00029726,30]
[388941848,1759527039939,-157.3002059,0.00029726,30]
[388941849,1759527039949,-587.3710559,0.00029726,30]
[388941850,1759527039958,-153.0,0.00029726,30]
[388941851,1759527039968,-297.3661479,0.00029726,30]
[388941852,1759527039977,-162.5876315,0.00029726,30]
[388941853,1759527039986,-297.0711174,0.00029726,30]
[388941854,1759527039995,-162.5876315,0.00029726,30]
[388941855,1759527040005,-153.0,0.00029726,30]
[388941856,1759527040014,-162.5876315,0.00029726,30]
[388941857,1759527040024,-162.5876315,0.00029726,30]
[388941858,1759527040033,-159.7848382,0.00029726,30]
[388941859,1759527040043,-162.5876315,0.00029726,30]
[388941860,1759527040054,-330.105404,0.00029726,30]
[388941861,1759527040063,-155.188083,0.000298,26]
[388941862,1759527040073,-151.0,0.00029889,2]
[388941863,1759527040082,-151.0,0.00029889,2]
[388941864,1759527040092,-151.0,0.00029889,2]
[388941865,1759527040101,-281.60790736,0.00029889,2]
[388941866,1759527040110,-151.0,0.00029889,2]
[388941867,1759527040120,-153.31514018,0.00029889,2]
[388941868,1759527040129,-151.0,0.00029889,2]
[388941869,1759527040138,-249.88819794,0.00029889,2]
[388941870,1759527040147,-151.0,0.00029889,2]
[388941871,1759527040157,-215.91317243,0.00029889,2]
[388941872,1759527040167,-151.0,0.00029889,2]
[388941873,1759527040177,-500.0,0.00029889,2]
[388941874,1759527040186,-151.0,0.00029889,2]
[388941875,1759527040195,-500.0,0.00029889,2]
[388941876,1759527040205,-151.0,0.00029889,2]
[388941877,1759527040214,-151.0,0.00029889,2]
[388941878,1759527040223,-151.0,0.00029889,2]
[388941879,1759527040233,-151.0,0.00029889,2]
[388941880,1759527040243,-151.0,0.00029889,2]
[388941881,1759527040253,-151.0,0.00029889,2]
[388941882,1759527040262,-151.0,0.00029889,2]
[388941883,1759527040271,-151.0,0.00029889,2]
[388941884,1759527040281,-5025.0,0.00029933,2]
[388941885,1759527040290,-500.5264877,0.00029973,5]
[388941887,1759527040300,-500.0,0.00029973,5]
[388941888,1759527040310,-500.0,0.00029973,5]
[388941890,1759527040319,-500.0,0.00029973,5]
[388941891,1759527040328,-475.01551633,0.00029986,2]
[388941892,1759527040337,-4000.0,0.0003,2]
[388941893,1759527040347,-3831.18055364,0.0003,2]
[388941894,1759527040356,-652.0,0.0003,2]
[388941895,1759527040365,-18854.74133645,0.0003,30]
[388941896,1759527040375,-18871.79501478,0.0003,2]
[388941897,1759527040385,-1577.05970297,0.0003,10]
[388941898,1759527040394,-708.94659791,0.0003,30]
[388941899,1759527040404,-165.46,0.0003,5]
[388941900,1759527040414,-512.95589946,0.0003,60]
[388941901,1759527040423,-524.46449702,0.0003,2]
[388941902,1759527040432,-2062.35734863,0.0003,120]
[388941903,1759527040442,-158.96351934,0.0003,60]
[388941904,1759527040451,-1041.66666667,0.0003,30]
[388941905,1759527040460,-155.188083,0.00030032,30]
[388941906,1759527040469,-10000.0,0.00030036,2]
[388941907,1759527040478,-4742.84572479,0.00030036,2]
[388941908,1759527040488,-3356.4368364,0.00030054,2]
[388941909,1759527040498,-904.216076,0.00030054,2]
[388941910,1759527040507,-1849.0613143,0.00030054,2]
[388941911,1759527040519,-510.04960561,0.000301,2]
[388941912,1759527041019,-221.73790777,0.00019247,2]
[388941913,1759527041030,-1489.95039439,0.000301,2]
[388941914,1759527041039,-1000.0,0.000301,2]
[388941915,1759527041049,-250.0,0.000301,10]
[388941916,1759527041058,-150.0,0.000301,2]
[388941917,1759527041067,-861.21385585,0.0003013,15]
[388941918,1759527041077,-284.90811947,0.0003013,2]
[388941919,1759527041086,-325.26653679,0.00030136,16]
[388941920,1759527041095,-481.89910425,0.00030136,16]
[388941921,1759527041104,-500.0,0.00030136,16]
[388941922,1759527041114,-500.0,0.00030136,16]
[388941923,1759527041123,-500.0,0.00030136,16]
[388941924,1759527041132,-500.0,0.00030136,16]
[388941925,1759527041140,-500.0,0.00030136,16]
[388941926,1759527041150,-500.0,0.00030136,16]
[388941927,1759527041159,-480.0,0.00030136,16]
[388941928,1759527041329,-500.0,0.00030136,16]
[388941929,1759527041341,-500.0,0.00030136,16]
[388941930,1759527041351,-500.0,0.00030136,16]
[388941931,1759527041360,-500.0,0.00030136,16]
[388941932,1759527041370,-500.0,0.00030136,16]
[388941933,1759527041379,-500.0,0.00030136,16]
[388941934,1759527041388,-435.51824749,0.00030136,16]
[388941935,1759527041398,-500.0,0.00030136,16]
[388941936,1759527041408,-500.0,0.00030136,16]
[388941937,1759527041419,-500.0,0.00030136,16]
[388941938,1759527041428,-500.0,0.00030136,16]
[388941939,1759527041438,-71.54552987,0.00030136,16]
[388941947,1759527043126,-5000.0,0.00019054,2]
[388941948,1759527043136,-428.45447013,0.00030136,16]
[388941949,1759527043147,-500.0,0.00030136,16]
[388941950,1759527043156,-500.0,0.00030136,16]
[388941951,1759527043166,-500.0,0.00030136,16]
[388941952,1759527043175,-500.0,0.00030136,16]
[388941953,1759527043184,-185.23941389,0.00030136,16]
[388941954,1759527043193,-500.0,0.00030136,16]
[388941955,1759527043202,-500.0,0.00030136,16]
[388941956,1759527043211,-500.0,0.00030136,16]
[388941957,1759527043219,-500.0,0.00030136,16]
[388941958,1759527043229,-500.0,0.00030136,16]
[388941959,1759527043238,-500.0,0.00030136,16]
[388941960,1759527043249,-500.0,0.00030136,16]
[388941961,1759527043258,-500.0,0.00030136,16]
[388941962,1759527043267,-500.0,0.00030136,16]
[388941963,1759527043276,-500.0,0.00030136,16]
[388941964,1759527043285,-500.0,0.00030136,16]
[388941965,1759527043295,-500.0,0.00030136,16]
[388941966,1759527043304,-500.0,0.00030136,16]
[388941967,1759527043313,-185.23941389,0.00030136,16]
[388941968,1759527043323,-500.0,0.00030136,16]
[388941969,1759527043332,-446.59029489,0.00030136,16]
[388941970,1759527043341,-500.0,0.00030136,16]
[388941971,1759527043351,-500.0,0.00030136,16]
[388941972,1759527043360,-500.0,0.00030136,16]
[388941973,1759527043370,-480.0,0.00030136,16]
[388941974,1759527043379,-500.0,0.00030136,16]
[388941975,1759527043388,-500.0,0.00030136,16]
[388941976,1759527043397,-500.0,0.00030136,16]
[388941977,1759527043407,-500.0,0.00030136,16]
[388941978,1759527043415,-500.0,0.00030136,16]
[388941979,1759527043425,-500.0,0.00030136,16]
[388941980,1759527043434,-500.0,0.00030136,16]
[388941981,1759527043444,-500.0,0.00030136,16]
[388941982,1759527043454,-357.58693867,0.00030136,16]
[388941983,1759527043464,-500.0,0.00030136,16]
[388941984,1759527043474,-500.0,0.00030136,16]
[388941985,1759527043483,-500.0,0.00030136,16]
[388941986,1759527043492,-500.0,0.00030136,16]
[388941987,1759527043502,-500.0,0.00030136,16]
[388941988,1759527043514,-500.0,0.00030136,16]
[388941989,1759527043526,-500.0,0.00030136,16]
[388941990,1759527043539,-500.0,0.00030136,16]
[388941991,1759527043551,-500.0,0.00030136,16]
[388941992,1759527043561,-500.0,0.00030136,16]
[388941993,1759527043570,-500.0,0.00030136,16]
[388941994,1759527043580,-500.0,0.00030136,16]
[388941995,1759527043589,-500.0,0.00030136,16]
[388941996,1759527043599,-500.0,0.00030136,16]
[388941997,1759527043608,-500.0,0.00030136,16]
[388941998,1759527043617,-500.0,0.00030136,16]
[388941999,1759527043627,-500.0,0.00030136,16]
[388942000,1759527043636,-500.0,0.00030136,16]
[388942001,1759527043645,-500.0,0.00030136,16]
[388942002,1759527043656,-500.0,0.00030136,16]
[388942003,1759527043668,-500.0,0.00030136,16]
[388942004,1759527043679,-361.62069352,0.00030136,16]
[388942005,1759527043690,-500.0,0.00030136,16]
[388942006,1759527043700,-500.0,0.00030136,16]
[388942007,1759527043710,-500.0,0.00030136,16]
[388942008,1759527043719,-500.0,0.00030136,16]
[388942009,1759527043729,-500.0,0.00030136,16]
[388942010,1759527043738,-500.0,0.00030136,16]
[388942011,1759527043747,-500.0,0.00030136,16]
[388942012,1759527043756,-453.22934458,0.00030136,16]
[388942013,1759527043767,-500.0,0.00030136,16]
[388942014,1759527043776,-500.0,0.00030136,16]
[388942015,1759527043787,-500.0,0.00030136,16]
[388942016,1759527043796,-500.0,0.00030136,16]
[388942017,1759527043806,-500.0,0.00030136,16]
[388942018,1759527043815,-460.0,0.00030136,16]
[388942019,1759527043824,-480.0,0.00030136,16]
[388942020,1759527043833,-500.0,0.00030136,16]
[388942021,1759527043843,-500.0,0.00030136,16]
[388942022,1759527043852,-500.0,0.00030136,16]
[388942023,1759527043861,-500.0,0.00030136,16]
[388942024,1759527043870,-500.0,0.00030136,16]
[388942025,1759527043879,-500.0,0.00030136,16]
[388942026,1759527043887,-500.0,0.00030136,16]
[388942027,1759527043896,-500.0,0.00030136,16]
[388942028,1759527043906,-500.0,0.00030136,16]
[388942029,1759527043915,-500.0,0.00030136,16]
[388942030,1759527043924,-500.0,0.00030136,16]
[388942031,1759527043935,-500.0,0.00030136,16]
[388942032,1759527043944,-197.6,0.00030136,16]
[388942033,1759527043953,-500.0,0.00030136,16]
[388942034,1759527043963,-500.0,0.00030136,16]
[388942035,1759527043973,-500.0,0.00030136,16]
[388942036,1759527043983,-500.0,0.00030136,16]
[388942037,1759527043992,-500.0,0.00030136,16]
[388942038,1759527044002,-500.0,0.00030136,16]
[388942039,1759527044012,-500.0,0.00030136,16]
[388942040,1759527044022,-628.37440452,0.00030136,16]
[388942041,1759527044032,-901.67,0.00030136,16]
[388942042,1759527044042,-901.67,0.00030136,16]
[388942043,1759527044051,-901.67,0.00030136,16]
[388942044,1759527044061,-901.67,0.00030136,16]
[388942045,1759527044070,-901.67,0.00030136,16]
[388942046,1759527044080,-901.67,0.00030136,16]
[388942047,1759527044090,-901.67,0.00030136,16]
[388942048,1759527044100,-901.67,0.00030136,16]
[388942049,1759527044109,-901.67,0.00030136,16]
[388942050,1759527044119,-901.67,0.00030136,16]
[388942051,1759527044128,-901.67,0.00030136,16]
[388942052,1759527044137,-901.67,0.00030136,16]
[388942053,1759527044147,-901.67,0.00030136,16]
[388942054,1759527044157,-901.67,0.00030136,16]
[388942055,1759527044167,-901.67,0.00030136,16]
[388942056,1759527044176,-901.67,0.00030136,16]
[388942057,1759527044185,-901.67,0.00030136,16]
[388942058,1759527044194,-901.67,0.00030136,16]
[388942059,1759527044204,-901.67,0.00030136,16]
[388942060,1759527044213,-901.67,0.00030136,16]
[388942061,1759527044222,-901.67,0.00030136,16]
[388942062,1759527044232,-901.67,0.00030136,16]
[388942063,1759527044241,-901.67,0.00030136,16]
[388942064,1759527044251,-901.89354263,0.00030136,16]
[388942065,1759527044260,-500.0,0.00030136,16]
[388942066,1759527044270,-500.0,0.00030136,16]
[388942067,1759527044280,-500.0,0.00030136,16]
[388942068,1759527044290,-500.0,0.00030136,16]
[388942069,1759527044299,-500.0,0.00030136,16]
[388942070,1759527044309,-500.0,0.00030136,16]
[388942071,1759527044318,-500.0,0.00030136,16]
[388942072,1759527044329,-500.0,0.00030136,16]
[388942073,1759527044340,-500.0,0.00030136,16]
[388942074,1759527044349,-500.0,0.00030136,16]
[388942075,1759527044359,-500.0,0.00030136,16]
[388942076,1759527044369,-500.0,0.00030136,16]
[388942077,1759527044378,-500.0,0.00030136,16]
[388942078,1759527044387,-500.0,0.00030136,16]
[388942079,1759527044396,-266.77771374,0.00030136,16]
[388942080,1759527044405,-500.0,0.00030136,16]
[388942081,1759527044415,-500.0,0.00030136,16]
[388942082,1759527044424,-500.0,0.00030136,16]
[388942083,1759527044433,-500.0,0.00030136,16]
[388942084,1759527044442,-500.0,0.00030136,16]
[388942085,1759527044451,-500.0,0.00030136,16]
[388942086,1759527044460,-500.0,0.00030136,16]
[388942087,1759527044470,-500.0,0.00030136,16]
[388942088,1759527044479,-500.0,0.00030136,16]
[388942089,1759527044488,-500.0,0.00030136,16]
[388942090,1759527044498,-500.0,0.00030136,16]
[388942091,1759527044508,-500.0,0.00030136,16]
[388942092,1759527044520,-500.0,0.00030136,16]
[388942093,1759527044530,-500.0,0.00030136,16]
[388942094,1759527044539,-500.0,0.00030136,16]
[388942095,1759527044548,-500.0,0.00030136,16]
[388942096,1759527044558,-500.0,0.00030136,16]
[388942097,1759527044567,-500.0,0.00030136,16]
[388942098,1759527044576,-249.87368928,0.00030136,16]